bitfinex-derivatives/quotes_SOLF0:USTF0_20250623
["timestamp","ask_amount","ask_price","bid_price","bid_amount"]
[1750668472344,7.45,134.2,134.16,12.69875778]
[1750668472748,7.45,134.2,134.17,7.451]
[1750668473449,2.76834853,134.22,134.16,12.69885778]
[1750668473646,5.46606078,134.21,134.16,12.69885778]
[1750668473847,2.76834853,134.22,134.16,12.69885778]
[1750668473848,5.46606078,134.2,134.16,12.69885778]
[1750668474046,7.4501,134.19,134.16,12.69885778]
[1750668476350,7.4501,134.19,134.16,5.24745778]
[1750668477054,7.4501,134.19,134.16,12.69905778]
[1750668479152,7.4499,134.2,134.17,7.4511]
[1750668481351,5.4728035,134.21,134.18,5.24745778]
[1750668481546,39.75181147,134.22,134.18,5.24745778]
[1750668481756,5.47243755,134.21,134.18,5.24745778]
[1750668481958,7.4492,134.21,134.18,5.24745778]
[1750668482256,7.4492,134.21,134.18,12.69805778]
[1750668483252,7.4495,134.2,134.18,12.69805778]
[1750668483556,7.4495,134.2,134.18,5.24745778]
[1750668487455,7.4495,134.2,134.18,12.69795778]
[1750668487856,7.4492,134.21,134.18,12.69795778]
[1750668488259,7.4492,134.21,134.19,3.35623972]
[1750668489263,7.4492,134.21,134.2,3.35623972]
[1750668489762,12.93294345,134.21,134.2,3.35623972]
[1750668491266,5.48374345,134.21,134.2,3.35623972]
[1750668491664,2.77457216,134.23,134.2,3.35623972]
[1750668491864,10.22257216,134.23,134.22,3.35623972]
[1750668492166,5.48340253,134.23,134.22,3.35623972]
[1750668492366,5.48340253,134.23,134.21,12.68998772]
[1750668492562,7.4475,134.24,134.21,12.68998772]
[1750668492762,5.48238497,134.23,134.21,12.68998772]
[1750668492963,10.22207216,134.24,134.21,12.68998772]
[1750668493164,5.48457325,134.23,134.2,7.4492]
[1750668493364,10.22207216,134.24,134.21,5.24148772]
[1750668493560,12.93255387,134.23,134.21,5.24148772]
[1750668493761,7.4479,134.23,134.21,5.24148772]
[1750668495464,7.4484,134.22,134.21,5.24148772]
[1750668496054,7.4481,134.23,134.21,5.24148772]
[1750668498666,5.48639162,134.24,134.21,5.24148772]
[1750668498866,5.48273764,134.25,134.21,5.24148772]
[1750668499066,5.48273764,134.24,134.21,5.24148772]
[1750668499267,7.4475,134.24,134.21,12.69008772]
[1750668502171,7.4479,134.23,134.21,5.24148772]
[1750668504868,7.4475,134.24,134.21,12.69028772]
[1750668508372,5.47437916,134.26,134.22,5.24148772]
[1750668509278,5.47437916,134.25,134.22,5.24148772]
[1750668509578,7.4476,134.24,134.22,5.24148772]
[1750668510177,8.24284264,134.26,134.22,5.24148772]
[1750668510478,5.47338833,134.26,134.21,5.24148772]
[1750668511575,5.47338833,134.26,134.2,7.4492]
[1750668511781,5.47338833,134.26,134.21,5.24148772]
[1750668512281,8.828215,134.26,134.23,3.35482667]
[1750668512483,5.47250987,134.25,134.23,3.35482667]
[1750668513276,7.4472,134.24,134.23,3.35482667]
[1750668519979,2.76858199,134.26,134.23,3.35482667]
[1750668520179,5.47858039,134.27,134.25,3.35482667]
[1750668520386,5.47858039,134.27,134.26,3.35482667]
[1750668520585,45.18693474,134.29,134.26,3.35482667]
[1750668520785,5.47893021,134.28,134.27,3.35482667]
[1750668521183,5.47908351,134.28,134.27,3.35482667]
[1750668521381,12.92458351,134.28,134.26,3.35482667]
[1750668521576,36.96,134.29,134.26,3.35482667]
[1750668521779,42.43631228,134.29,134.26,3.35482667]
[1750668521979,7.445,134.28,134.26,3.35482667]
[1750668522485,42.43631228,134.29,134.27,3.35482667]
[1750668522784,36.96,134.29,134.27,3.35482667]
[1750668523085,42.43631228,134.29,134.26,3.35482667]
[1750668523385,7.4454,134.28,134.26,3.35482667]
[1750668524086,7.4454,134.28,134.27,3.35482667]
[1750668524582,7.4461,134.27,134.23,7.4474]
[1750668524787,7.4461,134.27,134.26,3.35482667]
[1750668532596,7.4464,134.26,134.23,7.4474]
[1750668532793,7.4464,134.26,134.25,3.35482667]
[1750668534797,7.4459,134.27,134.25,3.35482667]
[1750668534996,7.4459,134.27,134.26,3.35482667]
[1750668543902,6.13068101,134.28,134.22,36.96]
[1750668544210,3.35482667,134.26,134.22,36.96]
[1750668544400,45.76179552,134.26,134.23,3.35482667]
[1750668544606,7.4467,134.25,134.24,3.35482667]
[1750668549310,7.4474,134.24,134.21,7.4486]
[1750668549609,7.4474,134.24,134.23,3.35482667]
[1750668550603,8.82334343,134.24,134.2,3.35482667]
[1750668550804,3.35482667,134.23,134.2,3.35482667]
[1750668551504,7.4493,134.21,134.2,3.35482667]
[1750668551706,15.77858704,134.25,134.2,3.35482667]
[1750668551914,8.2348588,134.24,134.21,3.35482667]
[1750668552214,7.4488,134.22,134.21,3.35482667]
[1750668556417,7.4488,134.22,134.18,7.4502]
[1750668556418,7.4488,134.22,134.2,3.35482667]
[1750668556910,7.4489,134.21,134.2,3.35482667]
[1750668557111,3.35482667,134.23,134.19,3.35482667]
[1750668557311,40.29482667,134.23,134.19,3.35482667]
[1750668558514,7.4495,134.2,134.19,3.35482667]
[1750668559921,7.4491,134.21,134.19,3.35482667]
[1750668561719,7.4491,134.21,134.2,3.35482667]
[1750668562521,36.94,134.23,134.2,3.35482667]
[1750668562719,36.94,134.23,134.22,3.35482667]
[1750668563517,44.3882,134.23,134.16,44.166]
[1750668563720,44.3882,134.23,134.22,3.35482667]
[1750668567620,7.4475,134.24,134.22,3.35482667]
[1750668567820,7.4475,134.24,134.23,3.35482667]
[1750668569927,7.448,134.23,134.2,7.4494]
[1750668570233,8.20988777,134.25,134.22,3.35482667]
[1750668570422,5.45108593,134.25,134.22,3.35482667]
[1750668570825,7.4478,134.23,134.22,3.35482667]
[1750668571628,7.449,134.21,134.18,7.4503]
[1750668571828,3.35482667,134.21,134.12,9.2762384]
[1750668572031,40.25482667,134.2,134.16,3.35482667]
[1750668572827,7.4511,134.17,134.16,3.35482667]
[1750668573927,7.4508,134.18,134.16,3.35482667]
[1750668574128,7.4508,134.18,134.17,3.35482667]
[1750668574329,7.4508,134.18,134.15,5.24659532]
[1750668576036,7.4512,134.17,134.15,5.24659532]
[1750668594432,7.4512,134.17,134.16,3.35791573]
[1750668595238,7.4508,134.18,134.16,3.35791573]
[1750668595439,7.4508,134.18,134.15,7.4522]
[1750668595740,7.4508,134.18,134.17,3.35791573]
[1750668595939,7.4508,134.18,134.16,3.35791573]
[1750668596139,7.4508,134.18,134.17,3.35791573]
[1750668600842,7.4508,134.18,134.15,7.4522]
[1750668601041,7.4508,134.18,134.17,3.35791573]
[1750668601641,7.4508,134.18,134.15,7.4522]
[1750668601841,7.4508,134.18,134.17,3.35791573]
[1750668604448,7.4511,134.17,134.16,3.35791573]
[1750668604647,3.35791573,134.19,134.15,3.35791573]
[1750668605242,7.4517,134.16,134.15,3.35791573]
[1750668605443,7.4517,134.16,134.11,4.7604]
[1750668605444,7.4517,134.16,134.14,3.35791573]
[1750668606148,36.9,134.2,134.15,3.35791573]
[1750668606346,39.65162201,134.2,134.17,3.35791573]
[1750668606646,7.4505,134.19,134.17,3.35791573]
[1750668607052,42.36161784,134.2,134.17,3.35791573]
[1750668607246,42.36164245,134.2,134.17,3.35791573]
[1750668607947,7.45,134.19,134.17,3.35791573]
[1750668609548,7.4506,134.18,134.17,3.3575197]
[1750668610148,36.9,134.2,134.17,10.8083197]
[1750668610342,8.23246269,134.21,134.19,3.3575197]
[1750668610649,7.4493,134.21,134.2,3.3575197]
[1750668610947,12.92945298,134.21,134.2,3.3575197]
[1750668611147,12.92945298,134.21,134.2,3.35610938]
[1750668614849,15.68564887,134.21,134.2,3.35610938]
[1750668615454,7.4496,134.2,134.17,7.4508]
[1750668615655,7.4496,134.2,134.19,3.35610938]
[1750668616450,7.4496,134.2,134.14,2.3324]
[1750668616451,48.47843227,134.2,134.15,3.35610938]
[1750668616661,8.24232289,134.19,134.16,3.35610938]
[1750668616855,40.23610938,134.2,134.16,3.35610938]
[1750668617051,8.24248953,134.19,134.17,3.35610938]
[1750668617257,40.23610938,134.2,134.17,3.35610938]
[1750668617457,15.69233749,134.19,134.18,3.35610938]
[1750668618351,12.93717135,134.19,134.18,3.35610938]
[1750668618663,7.45,134.19,134.18,3.35610938]
[1750668618856,15.6946351,134.19,134.18,3.35610938]
[1750668620162,7.4507,134.18,134.14,7.4525]
[1750668620350,7.4507,134.18,134.17,3.35610938]
[1750668620554,2.75824579,134.19,134.16,3.35610938]
[1750668620754,45.72850793,134.2,134.16,3.35610938]
[1750668621050,7.4511,134.18,134.16,3.35610938]
[1750668621455,7.4511,134.18,134.17,3.35610938]
[1750668622062,7.4514,134.17,134.16,3.35610938]
[1750668625760,7.4508,134.18,134.16,3.35610938]
[1750668625963,7.4508,134.18,134.17,3.35610938]
[1750668626164,12.93975213,134.18,134.17,3.35610938]
[1750668627365,12.93975422,134.18,134.17,3.35610938]
[1750668633663,7.4508,134.18,134.17,3.35610938]
[1750668635070,7.4511,134.17,134.14,7.4525]
[1750668635274,7.4511,134.17,134.16,3.35610938]
[1750668635468,2.75401508,134.19,134.16,3.35610938]
[1750668635768,7.4508,134.18,134.17,3.35610938]
[1750668636270,12.9334854,134.18,134.17,3.35610938]
[1750668638171,7.4508,134.18,134.15,7.4519]
[1750668638371,7.4508,134.18,134.17,3.35610938]
[1750668639667,6.9606503,134.21,134.17,3.35610938]
[1750668639864,42.34754245,134.22,134.2,3.35610938]
[1750668640068,43.8206503,134.25,134.21,3.35610938]
[1750668640363,13.7165722,134.24,134.21,3.35610938]
[1750668640567,8.22814684,134.23,134.2,3.35610938]
[1750668640769,8.22814684,134.22,134.19,3.35610938]
[1750668640969,5.47741132,134.21,134.18,3.35610938]
[1750668641169,40.21610938,134.22,134.18,3.35610938]
[1750668641364,7.4497,134.2,134.18,3.35610938]
[1750668642170,7.4497,134.2,134.19,3.35610938]
[1750668644170,7.4503,134.19,134.18,3.35610938]
[1750668645887,7.4506,134.18,134.17,3.35610938]
[1750668646074,3.35610938,134.2,134.16,3.35610938]
[1750668646269,5.47203821,134.19,134.16,3.35610938]
[1750668646471,7.4511,134.18,134.16,3.35610938]
[1750668646675,5.47041485,134.19,134.16,3.35610938]
[1750668646874,7.4511,134.17,134.16,3.35610938]
[1750668647072,7.4511,134.17,134.13,9.88]
[1750668647276,3.35610938,134.17,134.13,3.35610938]
[1750668647484,3.35610938,134.16,134.09,36.86]
[1750668647780,3.35610938,134.16,134.13,3.35610938]
[1750668648280,7.4532,134.14,134.13,3.35610938]
[1750668651576,7.4532,134.14,134.11,7.4544]
[1750668651875,7.4532,134.14,134.13,3.35610938]
[1750668656392,7.4525,134.15,134.13,3.35610938]
[1750668656592,7.4525,134.15,134.14,3.35610938]
[1750668658900,2.73972558,134.18,134.14,3.35610938]
[1750668659089,5.45665689,134.18,134.17,3.35610938]
[1750668659684,5.45665689,134.18,134.14,7.4525]
[1750668659893,39.59972558,134.19,134.17,3.35610938]
[1750668660295,7.4505,134.18,134.17,3.35610938]
[1750668660998,12.907672,134.18,134.17,3.35610938]
[1750668661397,7.4505,134.18,134.17,3.35610938]
[1750668661598,12.90772444,134.18,134.16,3.35610938]
[1750668661798,7.4511,134.17,134.16,3.35610938]
[1750668662294,5.45722444,134.18,134.16,3.35610938]
[1750668662499,7.451,134.18,134.16,3.35610938]
[1750668662699,39.59884521,134.19,134.16,3.35610938]
[1750668663400,7.4511,134.17,134.16,3.35610938]
[1750668667003,7.4508,134.18,134.16,3.35610938]
[1750668667200,36.86,134.19,134.16,3.35610938]
[1750668667395,36.86,134.19,134.18,3.35610938]
[1750668667396,2.74031743,134.19,134.18,3.35610938]
[1750668667607,4.8299,134.22,134.18,3.35610938]
[1750668667803,12.90826317,134.21,134.2,3.35610938]
[1750668668201,15.6485806,134.21,134.2,3.35612839]
[1750668668403,12.90826317,134.21,134.2,3.35612839]
[1750668668906,7.4489,134.21,134.2,3.35612839]
[1750668669704,7.4494,134.2,134.19,3.35612839]
[1750668669900,5.44073545,134.21,134.18,3.35612839]
[1750668670205,2.74670007,134.21,134.16,5.24547081]
[1750668670796,7.4508,134.18,134.16,5.24547081]
[1750668671910,2.74670007,134.21,134.16,5.24547081]
[1750668673211,7.4509,134.18,134.16,5.24547081]
[1750668674313,7.4511,134.17,134.16,5.24547081]
[1750668677113,7.4518,134.16,134.13,2.2948]
[1750668677314,7.4518,134.16,134.15,5.24547081]
[1750668678515,7.4514,134.17,134.15,5.24547081]
[1750668680615,7.4514,134.17,134.15,12.69757081]
[1750668683816,7.4508,134.18,134.15,12.69757081]
[1750668686117,7.4508,134.18,134.16,7.4516]
[1750668686921,7.4508,134.18,134.17,5.24547081]
[1750668687415,7.4503,134.19,134.17,5.24547081]
[1750668688117,44.2897,134.2,134.17,12.69637081]
[1750668688318,44.2897,134.2,134.19,5.24377231]
[1750668693316,36.84,134.2,134.19,5.24377231]
[1750668694220,8.20129977,134.24,134.19,3.35437631]
[1750668694422,5.44954432,134.24,134.23,3.35437631]
[1750668694624,12.89674432,134.24,134.23,3.35437631]
[1750668694925,7.4472,134.24,134.23,3.35437631]
[1750668695521,49.71601058,134.25,134.23,3.35437631]
[1750668695728,49.71601058,134.25,134.24,3.35437631]
[1750668695729,36.82,134.25,134.24,3.35437631]
[1750668696026,7.4464,134.26,134.24,3.35437631]
[1750668696329,12.89707946,134.26,134.25,3.35437631]
[1750668696723,7.4464,134.26,134.22,7.4481]
[1750668696925,7.4468,134.25,134.22,7.4481]
[1750668697222,36.82,134.25,134.23,3.35437631]
[1750668698223,7.4479,134.23,134.21,5.24191028]
[1750668698419,36.82,134.25,134.21,5.24191028]
[1750668698822,7.4478,134.24,134.21,5.24191028]
[1750668699130,7.4478,134.24,134.21,12.69071028]
[1750668699323,36.82,134.25,134.23,5.24191028]
[1750668700829,44.2668,134.25,134.23,5.24191028]
[1750668701529,7.4468,134.25,134.23,5.24191028]
[1750668702526,7.4464,134.26,134.23,7.4477]
[1750668702727,42.23462171,134.28,134.24,5.24191028]
[1750668702926,36.8,134.28,134.24,5.24191028]
[1750668703829,7.4467,134.25,134.23,5.24191028]
[1750668705133,7.4472,134.24,134.21,5.24191028]
[1750668705331,5.24191028,134.24,134.15,41.583]
[1750668705636,4.7592,134.23,134.17,12.69291028]
[1750668705828,36.8,134.22,134.17,12.69291028]
[1750668706431,7.4496,134.2,134.17,12.69291028]
[1750668706936,7.4492,134.21,134.18,7.4505]
[1750668707434,36.8,134.22,134.17,5.24191028]
[1750668707732,36.8,134.22,134.17,12.69271028]
[1750668708530,7.4492,134.21,134.18,7.4505]
[1750668708734,7.4492,134.21,134.19,5.24191028]
[1750668710733,2.4725,134.24,134.19,5.24191028]
[1750668710927,36.8,134.25,134.21,5.24191028]
[1750668711127,5.24191028,134.24,134.18,42.04191028]
[1750668711329,7.4497,134.2,134.18,5.24191028]
[1750668712735,7.4497,134.2,134.17,5.24191028]
[1750668713441,7.4497,134.2,134.17,12.69291028]
[1750668714538,36.8,134.22,134.12,36.8]
[1750668714738,36.8,134.22,134.14,5.24578699]
[1750668714739,9.98638699,134.21,134.14,5.24578699]
[1750668715045,7.4508,134.18,134.14,12.69818699]
[1750668715242,9.98638699,134.21,134.14,12.69818699]
[1750668715645,7.4512,134.17,134.14,12.69818699]
[1750668718850,7.4508,134.18,134.15,12.69857613]
[1750668719150,10.17927914,134.21,134.15,5.24637613]
[1750668719356,4.7406,134.21,134.15,5.24637613]
[1750668720254,4.7406,134.21,134.16,7.4514]
[1750668720650,7.4497,134.2,134.17,12.69717613]
[1750668721357,7.45,134.19,134.17,5.24637613]
[1750668723058,7.45,134.19,134.17,12.69737613]
[1750668724958,7.4496,134.2,134.17,12.69737613]
[1750668725159,36.8,134.22,134.17,12.69737613]
[1750668726448,7.4501,134.19,134.17,12.69737613]
[1750668728258,7.4501,134.19,134.17,5.24637613]
[1750668729656,7.4496,134.2,134.17,12.69717613]
[1750668730660,7.4491,134.21,134.19,5.24637613]
[1750668731362,36.8,134.22,134.17,7.4509]
[1750668731562,36.8,134.22,134.18,5.24637613]
[1750668732963,7.449,134.21,134.18,5.24637613]
[1750668733359,7.4497,134.2,134.18,5.24637613]
[1750668733953,36.8,134.22,134.18,5.24637613]
[1750668734569,7.45,134.19,134.17,5.24503245]
[1750668740167,7.4505,134.18,134.17,5.24503245]
[1750668743060,7.4503,134.19,134.17,5.24503245]
[1750668743872,7.4505,134.18,134.17,5.24503245]
[1750668747173,7.4503,134.19,134.17,5.24503245]
[1750668751477,7.4497,134.2,134.17,12.69603245]
[1750668752176,7.4491,134.21,134.19,5.24503245]
[1750668754177,44.2486,134.22,134.19,5.24503245]
[1750668754383,48.3892503,134.25,134.21,5.24503245]
[1750668754568,8.1794475,134.24,134.21,5.24503245]
[1750668754873,48.3892503,134.25,134.22,5.24118519]
[1750668754874,8.1794475,134.23,134.22,5.24118519]
[1750668755375,5.42004234,134.23,134.22,5.24118519]
[1750668758578,8.17994686,134.23,134.22,5.24118519]
[1750668758779,8.18928227,134.23,134.22,5.24118519]
[1750668759182,15.63708227,134.23,134.22,5.24118519]
[1750668760282,15.63708227,134.23,134.2,5.24118519]
[1750668760477,5.41949624,134.24,134.2,5.24118519]
[1750668760683,10.72111682,134.23,134.18,5.24118519]
[1750668760884,8.19791682,134.22,134.18,5.24118519]
[1750668761084,36.78,134.22,134.18,5.24118519]
[1750668761477,7.449,134.21,134.18,5.24118519]
[1750668761783,36.78,134.22,134.18,5.24118519]
[1750668762184,7.4495,134.2,134.18,5.24118519]
[1750668762982,7.4495,134.2,134.16,44.2313]
[1750668763183,7.4495,134.2,134.18,5.24118519]
[1750668765479,7.4502,134.19,134.16,42.02118519]
[1750668765688,2.77046518,134.21,134.16,5.24118519]
[1750668765987,8.20306439,134.2,134.15,5.24118519]
[1750668766181,44.98306439,134.19,134.15,5.24118519]
[1750668766383,7.4511,134.18,134.15,5.24118519]
[1750668769391,7.4511,134.18,134.14,7.4525]
[1750668769590,7.4511,134.18,134.15,5.24118519]
[1750668770187,7.4512,134.17,134.15,5.24118519]
[1750668771294,7.4509,134.18,134.15,5.24118519]
[1750668774096,7.4512,134.17,134.15,5.24118519]
[1750668774694,7.4512,134.17,134.13,12.69438519]
[1750668774895,36.78,134.16,134.11,5.24118519]
[1750668775803,39.54522723,134.16,134.11,5.24118519]
[1750668775991,7.4528,134.15,134.11,5.24118519]
[1750668779599,36.78,134.16,134.11,5.24118519]
[1750668780300,7.4527,134.15,134.11,12.69558519]
[1750668782206,36.78,134.16,134.11,5.24118519]
[1750668782600,36.78,134.16,134.1,44.2348]
[1750668782800,7.4532,134.14,134.1,49.47598519]
[1750668784802,7.4532,134.14,134.1,44.2348]
[1750668785006,7.4532,134.14,134.1,49.47598519]
[1750668785404,7.4535,134.13,134.1,5.24118519]
[1750668785709,36.8,134.13,134.08,5.24118519]
[1750668786107,7.4549,134.11,134.08,5.24118519]
[1750668786604,42.04118519,134.13,134.04,38.09763592]
[1750668786811,4.9943,134.15,134.03,2.4971]
[1750668786812,5.24118519,134.11,134.03,5.24118519]
[1750668787005,5.24118519,134.09,133.99,2.4971]
[1750668787204,5.24118519,134.07,134.0,5.24118519]
[1750668787810,2.4171,134.07,134.02,5.24118519]
[1750668788111,2.4171,134.07,134.0,5.24118519]
[1750668788112,7.4591,134.03,134.0,5.24118519]
[1750668789008,42.02118519,134.05,133.97,7.4621]
[1750668789201,42.02118519,134.05,133.97,5.24118519]
[1750668789202,5.24118519,134.03,133.97,5.24118519]
[1750668789505,36.78,134.02,133.97,5.24118519]
[1750668789711,44.2399,134.02,133.98,7.4617]
[1750668790105,4.8328,134.04,133.99,5.24118519]
[1750668790306,4.8328,134.04,134.01,5.24118519]
[1750668790603,4.8328,134.04,133.99,5.24118519]
[1750668790809,5.24118519,134.03,133.97,5.24118519]
[1750668791108,7.4604,134.01,133.97,5.24118519]
[1750668791810,44.2398,134.02,133.97,12.70328519]
[1750668793308,7.4603,134.01,133.97,12.70328519]
[1750668793508,36.78,134.02,133.96,12.70388519]
[1750668793713,36.78,134.02,133.96,5.24118519]
[1750668794303,7.4605,134.01,133.96,5.24118519]
[1750668794714,7.4605,134.01,133.94,40.58897707]
[1750668794924,7.4605,134.01,133.97,5.24118519]
[1750668795417,4.8328,134.04,133.99,5.24118519]
[1750668795616,4.8328,134.04,134.01,5.24118519]
[1750668795812,4.8328,134.04,134.0,5.24118519]
[1750668796210,7.4595,134.03,134.0,5.24118519]
[1750668796419,4.8328,134.04,134.0,5.24118519]
[1750668797004,12.2915,134.04,134.0,12.70158519]
[1750668797210,36.8,134.05,134.0,5.24118519]
[1750668797608,44.2582,134.05,134.01,7.4598]
[1750668798322,44.2582,134.05,134.02,12.70078519]
[1750668798612,36.8,134.05,134.02,12.70078519]
[1750668799008,36.8,134.05,134.02,5.24118519]
[1750668800115,36.8,134.05,134.01,5.24118519]
[1750668800511,36.8,134.05,134.0,5.24118519]
[1750668801413,7.4597,134.02,133.99,5.24118519]
[1750668802808,7.4593,134.03,133.99,12.70228519]
[1750668803816,12.3724,134.04,134.0,7.4606]
[1750668804019,36.8,134.05,134.01,5.24118519]
[1750668804315,44.2583,134.05,134.01,12.70108519]
[1750668804517,36.8,134.05,134.01,5.24118519]
[1750668805024,7.4586,134.04,134.01,5.24118519]
[1750668805817,7.4586,134.04,134.0,7.4603]
[1750668806017,7.4586,134.04,134.01,12.70128519]
[1750668806719,44.2582,134.05,134.01,12.70128519]
[1750668806920,36.8,134.05,134.01,12.70128519]
[1750668807721,7.4587,134.04,134.01,5.24118519]
[1750668808224,36.8,134.05,134.01,5.24118519]
[1750668808521,7.4586,134.04,134.01,5.24118519]
[1750668809023,36.8,134.05,133.98,2.4012]
[1750668809210,36.8,134.05,133.99,5.24118519]
[1750668809615,7.4598,134.02,133.99,5.24118519]
[1750668809920,7.4598,134.02,133.98,7.4615]
[1750668810123,7.4598,134.02,133.98,12.70268519]
[1750668811022,7.4602,134.01,133.98,12.70268519]
[1750668811624,36.8,134.05,134.0,5.24118519]
[1750668811823,36.8,134.05,134.02,5.25824555]
[1750668812024,39.3152,134.06,134.02,5.25824555]
[1750668812323,7.4594,134.03,134.01,5.25824555]
[1750668813321,7.4594,134.03,133.99,12.71924555]
[1750668813521,7.4597,134.02,133.99,12.71924555]
[1750668815229,7.4585,134.04,134.01,5.25824555]
[1750668815820,7.4585,134.04,134.01,12.71834555]
[1750668816025,7.459,134.03,134.01,5.25824555]
[1750668817722,7.459,134.03,134.0,12.71864555]
[1750668819817,41.7738,134.06,134.0,12.71864555]
[1750668822124,7.4591,134.03,134.0,12.71864555]
[1750668822824,41.7738,134.06,134.0,12.71864555]
[1750668823029,7.4588,134.04,134.0,12.71864555]
[1750668823430,7.4588,134.04,134.01,7.46]
[1750668823830,7.4588,134.04,134.0,12.71864555]
[1750668824131,7.4588,134.04,134.0,5.25824555]
[1750668824631,7.4588,134.04,134.0,12.71874555]
[1750668825131,7.4588,134.04,134.01,7.46]
[1750668825329,49.2314,134.06,134.02,5.25824555]
[1750668825535,37.32,134.08,134.04,5.25824555]
[1750668825833,37.32,134.08,134.05,5.25524386]
[1750668826227,7.4571,134.07,134.05,5.25524386]
[1750668826724,7.4568,134.07,134.05,5.25524386]
[1750668827124,37.32,134.08,134.03,5.25524386]
[1750668827431,37.32,134.08,134.0,39.7379]
[1750668827432,7.4582,134.05,134.02,5.25524386]
[1750668827625,37.32,134.08,134.02,5.25524386]
[1750668827825,37.32,134.08,134.01,5.25524386]
[1750668827826,7.4593,134.03,134.01,5.25524386]
[1750668828634,7.4596,134.02,134.01,5.25524386]
[1750668829030,7.4596,134.02,133.99,7.68554386]
[1750668829630,7.4603,134.01,133.98,7.4616]
[1750668829826,37.3,134.02,133.98,5.25524386]
[1750668830231,37.3,134.02,133.95,5.25524386]
[1750668830431,2.4855,134.01,133.95,5.25524386]
[1750668830831,7.4614,133.99,133.95,12.71834386]
[1750668831530,2.4855,134.01,133.97,5.25524386]
[1750668831835,37.3,134.02,133.99,5.25524386]
[1750668832424,44.76,134.02,133.99,5.25524386]
[1750668833841,7.4602,134.01,133.99,5.25524386]
[1750668835337,7.4609,134.0,133.98,5.25524386]
[1750668835740,37.3,134.02,133.98,12.71684386]
[1750668835938,7.4605,134.01,133.98,12.71684386]
[1750668836444,44.7599,134.02,133.99,7.4612]
[1750668836638,37.3,134.02,134.0,5.25524386]
[1750668836837,39.8055,134.05,134.0,5.25524386]
[1750668837041,7.459,134.03,134.02,5.25524386]
[1750668838044,15.55671658,134.04,134.02,5.25524386]
[1750668838247,8.09801658,134.04,134.0,5.25524386]
[1750668838644,7.4591,134.03,134.0,5.25524386]
[1750668839847,7.4591,134.03,134.0,12.71584386]
[1750668840944,15.55460131,134.04,134.01,7.4601]
[1750668841146,10.58334099,134.05,134.02,5.25524386]
[1750668841450,10.58334099,134.05,133.98,5.25524386]
[1750668841451,37.32,134.07,134.04,5.25524386]
[1750668841647,7.4574,134.06,134.04,5.25524386]
[1750668842837,7.4579,134.05,134.04,5.25524386]
[1750668843339,2.3371,134.09,134.04,5.25524386]
[1750668843545,10.43439973,134.09,134.07,5.25524386]
[1750668843846,7.4563,134.08,134.07,5.25524386]
[1750668844441,15.15096189,134.09,134.07,5.25524386]
[1750668844638,17.88530857,134.09,134.07,5.25524386]
[1750668845946,15.54820857,134.09,134.07,5.25524386]
[1750668846147,9.8386,134.1,134.07,5.25524386]
[1750668846339,39.8281,134.11,134.07,5.25524386]
[1750668846648,39.8281,134.11,134.09,5.25524386]
[1750668847244,47.91853829,134.11,134.09,5.25524386]
[1750668847449,39.8281,134.11,134.09,5.25524386]
[1750668847646,7.4552,134.1,134.09,5.25524386]
[1750668848047,7.4552,134.1,134.07,7.4565]
[1750668848345,7.4552,134.1,134.08,5.25524386]
[1750668849351,7.4557,134.09,134.08,5.25524386]
[1750668849850,7.4554,134.1,134.08,5.25524386]
[1750668851551,37.32,134.11,134.08,5.25524386]
[1750668851552,44.7747,134.11,134.08,5.25524386]
[1750668851754,2.326,134.13,134.1,5.25524386]
[1750668852753,7.4545,134.11,134.1,5.25524386]
[1750668859855,7.4545,134.11,134.09,5.25524386]
[1750668860951,7.4552,134.1,134.09,5.25524386]
[1750668864156,7.4552,134.1,134.06,7.457]
[1750668864356,7.4552,134.1,134.09,5.25524386]
[1750668868561,7.4557,134.09,134.08,5.25524386]
[1750668869360,7.4563,134.08,134.04,14.7125]
[1750668869563,37.42,134.11,134.07,5.25524386]
[1750668870962,7.4556,134.09,134.07,5.25524386]
[1750668875769,7.4553,134.1,134.07,12.71184386]
[1750668875967,7.4553,134.1,134.09,5.25524386]
[1750668878872,37.42,134.11,134.09,5.25524386]
[1750668879068,39.4763,134.14,134.09,5.25524386]
[1750668879269,39.4763,134.14,134.11,5.25524386]
[1750668879672,7.4541,134.12,134.11,5.25524386]
[1750668879973,39.4763,134.14,134.11,5.25524386]